Workbook

Sheet 説明
B2: 【目次】
B3: 項 目 | I3: 計算ツールの場所（シート名） | M3: 参 照
M4: 「漁港・漁場の施設の設計参考図書」
M5: ページ
B6: 津波波力の算定 （谷本式、水工研式） | I6: 5.2 津波の波力 | M6: 104-108
B7: 津波の流れの作用に対する被覆石及びブロックの所要質量の算定 | I7: 5.3 被覆石及びブロックの所要質量 | M7: 108-110
B8: 直立消波ブロック式係船岸における上部工に作用する波圧の算定 | I8: 5.4 上部工に作用する波圧 | M8: 110-112
I9: ※下線部分をクリックすると各計算ツールの場所に移動します
B11: 【使用方法】
B12: ①計算ツール内の黄色のセルに各パラメータを入力すると、算定値が出力されます。
B13: ②計算ツール内の緑色のセルには係数または定数が入力されています。必要に応じて変更してください。

Sheet 5.2 津波の波力
B2: 津波波力の算定 (pp.104-108)
C3: [使用方法]
C4: ・ 黄色のセルに算定条件を入力すると、波圧および波圧合力等が算定されます。
C5: ・ 緑色のセルは補正係数です。必要に応じて変更してください。
C8: 谷本式による津波波力の算定 (pp.105-106、式 2-5-1、式 2-5-2、式2-5-3)
D10: h (m) | E10: T/2 (s) | F10: aI (m) | G10: h' (m) | H10: hc (m) | I10: B (m) | J10: ρ0 (t/m3)
D11: 10 | E11: 120 | F11: 3 | G11: 4.5 | H11: 5 | I11: 11 | J11: 1.03
D13: L (m) | E13: h/L
D14: =ROUND((9.81*D11)^0.5*E11*2,2) -> 2377.09 | E14: =ROUND(D11/D14,4) -> 0.0042
D16: ① h/L ＜ 0.005 の場合
D17: η* | E17: p1 | F17: p2 ※1) | G17: pu | H17: 前面波圧合力 | I17: 揚圧力合力
H18: PI | I18: PU
D19: (m) | E19: (kN/m2) | F19: (kN/m2) | G19: (kN/m2) | H19: (kN/m) | I19: (kN/m) | L19: η* | M19: ： 静水面上の波圧作用高さ (m)
D20: =IF( E14<0.005, ROUND(3*F11,3), "-" ) -> 9 | E20: =IF( E14<0.005, ROUND(2.2*J11*9.81*F11,3), "-" ) -> 66.688 | F20: =IF( E14<0.005, ROUND(E20*(D20-MIN(D20,H11))/D20,3), "-" ) -> 29.639 | G20: =IF( E14<0.005, ROUND(E20,3), "-" ) -> 66.688 | H20: =IF( E14<0.005, ROUND((E20+F20)*MIN(D20,H11)/2+(E20*G11),3), "-" ) -> 540.914 | I20: =IF( E14<0.005, ROUND(G20*I11/2,3), "-" ) -> 366.784 | L20: aI | M20: ： 進行波としての津波高さ (m)
L21: h | M21: ： 堤体の前面における水深 (m)
D22: ② h/L ≧ 0.005 の場合 | L22: h' | M22: ： 堤体の底面の水深 (m)
D23: （ソリトン分裂が発生し分裂波による波圧の増加が考えられるような条件下） | L23: hc | M23: ： 静水面上天端高 (m)
D24: η* | E24: p1 | F24: p2 ※1) | G24: pu | H24: 前面波圧合力 | I24: 揚圧力合力 | L24: p1 | M24: ： 静水面における波圧強度 (kN/m2)
H25: PI | I25: PU | L25: p2 | M25: ： 堤体上端部における波圧強度 (kN/m2)
D26: (m) | E26: (kN/m2) | F26: (kN/m2) | G26: (kN/m2) | H26: (kN/m) | I26: (kN/m) | L26: pu | M26: ： 前面下端における揚圧力強度 (kN/m2)
D27: =IF( E14>=0.005, ROUND(3*F11,3), "-" ) -> - | E27: =IF( E14>=0.005, ROUND(3*J11*9.81*F11,3), "-" ) -> - | F27: =IF( E14>=0.005, ROUND(E27*(D27-MIN(D27,H11))/D27,3), "-" ) -> - | G27: =IF( E14>=0.005, ROUND(E27,3), "-" ) -> - | H27: =IF( E14>=0.005, ROUND((E27+F27)*MIN(D27,H11)/2+(E27*G11),3), "-" ) -> - | I27: =IF( E14>=0.005, ROUND(G27*I11/2,3), "-" ) -> - | L27: B | M27: ： 堤体幅 (m)
L28: ρ0 | M28: ： 海水の密度 (通常は1.03t/m3)
D29: ※1) 堤体上端部における波圧強度 p2 は次式で算定した。 | L29: L | M29: ： 波長 (m)
L30: T/2 | M30: ： 半周期 (s) ※）
L31: ※） 【参照】 「平成 23 年東日本大震災を踏まえた漁港施設の 地震・津波対策の基本的な考え方」 （平成26年1月23日） 水産庁
C37: 水工研式による津波波力の算定 (pp.106-108、式 2-5-4、式 2-5-5、式2-5-6、式2-5-7)
D39: η (m) | E39: ηB (m) | F39: h' (m) | G39: hc (m) | H39: B (m) | I39: ρ0 (t/m3)
D40: 6 | E40: 5 | F40: 4.5 | G40: 4.5 | H40: 11 | I40: 1.03
D42: a1 | E42: aB
D43: 1.1 | E43: 0.9
D45: 越流判定： | E45: =IF( D40>G40, "越流", "非越流" ) -> 越流
D46: p1 | E46: p2 | F46: p3 | G46: p4 | H46: 前面波圧合力 | I46: 後面波圧合力 | J46: 揚圧力合力
H47: PI | I47: PB | J47: PU
D48: (kN/m2) | E48: (kN/m2) | F48: (kN/m2) | G48: (kN/m2) | H48: (kN/m) | I48: (kN/m) | J48: (kN/m)
D49: =ROUND(I40*9.81*(F40+D40)*D43,3) -> 116.705 | E49: =IF( E45="越流", ROUND(D49*(D40-MIN(D40,G40))/(F40+D40),3), IF( E45="非越流", 0, "" ) ) -> 16.672 | F49: =ROUND(I40*9.81*(F40+E40)*E43,3) -> 86.392 | G49: =IF( E45="越流", ROUND(F49*(E40-MIN(E40,G40))/(F40+E40),3), IF( E45="非越流", 0, "" ) ) -> 4.547 | H49: =ROUND(0.5*(D49+E49)*(F40+MIN(D40,G40)),3) -> 600.197 | I49: =ROUND(0.5*(F49+G49)*(F40+MIN(E40,G40)),3) -> 409.226 | J49: =ROUND(0.5*(D49+F49)*H40-0.5*(E49+G49)*H40,3) -> 1000.329
L61: η | M61: ： 静水面上の前面の津波高さ (m)
L62: ηB | M62: ： 静水面上の背面の津波高さ (m)
L63: h' | M63: ： 堤体の前面における水深 (m)
L64: ρ0 | M64: ： 海水の密度 (t/m3)
L65: p1 | M65: ： 堤体下端部における前面波圧強度 (kN/m2)
L66: p2 | M66: ： 堤体上端部における前面波圧強度 (kN/m2)
L67: p3 | M67: ： 堤体下端部における背面波圧強度 (kN/m2)
L68: p4 | M68: ： 堤体上端部における背面波圧強度 (kN/m2)
L69: B | M69: ： 堤体幅 (m)
L70: hc | M70: ： 堤体の静水面上の高さ (m)
L71: a1 | M71: ： 前面の静水圧補正係数
L72: aB | M72: ： 背面の静水圧補正係数

Sheet 5.3 被覆石及びブロックの所要質量
B2: 津波の流れの作用に対する被覆石及びブロックの所要質量の算定 (pp.108-110)
C3: [使用方法]
C4: ・ 黄色のセルに算定条件を入力すると、安定質量等が算定されます。
C5: ・ 緑色のセルは定数です。必要に応じて変更してください。
C8: 非越流時
D9: イスバッシュ式 (式 2-5-8)
D10: ①斜面の傾斜角θ（°）を用いる場合
D11: ρr (t/m3) | E11: U (m/s) | F11: Sr | G11: θ (°) ※1） | H11: y | I11: M (t)
D12: 2.3 | E12: 3 | F12: 2.3 | G12: 30 | H12: 1.08 | I12: =ROUND(PI()*D12*E12^6/(48*9.81^3*H12^6*((F12-1)^3)*(COS(RADIANS(G12))-SIN(RADIANS(G12)))^3),3) -> 0.68
K13: M | L13: ： 安定質量 (t)
D14: ②斜面の法勾配1：nを用いる場合 | K14: ρr | L14: ： 捨石等の密度 (t/m3)
D15: ρr (t/m3) | E15: U (m/s) | F15: Sr | G15: n ※1） | H15: y | I15: M (t) | K15: U | L15: ： 捨石等の上面における水の流れの速度 (m/s)
D16: 2.3 | E16: 3 | F16: 2.3 | G16: =SQRT(3) -> 1.732050808 | H16: 1.08 | I16: =ROUND(PI()*D16*E16^6/(48*9.81^3*H16^6*((F16-1)^3)*(COS(ATAN(1/G16))-SIN(ATAN(1/G16)))^3),3) -> 0.68 | K16: y | L16: ： イスバッシュの定数
K17: Sr | L17: ： 捨石等の海水に対する比重
D18: ※1） 適用できる捨石法面の角度は、θ=45°よりも緩い場合 （法勾配 1：1.0 よりも緩い勾配）に限られる。 | K18: θ | L18: ： 流れ方向の捨石等の斜面の傾斜角 (°)
K19: n | L19: ： 法勾配 1：n
C22: 越流時
D23: 三井らによる安定数 (式 2-5-9)
D24: h1 (m) | E24: ρr (t/m3) | F24: Sr | G24: N
D25: 2 | E25: 2.3 | F25: 2.3 | G25: 0.6
D27: Dn (m) | E27: V (m3) ※2) | F27: M (t) ※2)
D28: =ROUND(D25/(F25-1)/G25,3) -> 2.564 | E28: =ROUND(D28^3,3) -> 16.856 | F28: =ROUND(E25*D25^3/(G25^3*(F25-1)^3),3) -> 38.773
D30: ※2） ブロック体積Vおよび安定質量Mは次式で算定した。
K33: N | L33: ： 安定数
K34: h1 | L34: ： 越流水深 (m)
K35: ρr | L35: ： ブロック等の密度 (t/m3)
K36: Sr | L36: ： コンクリートの海水に対する比重
K37: V | L37: ： ブロック体積 (m3)
K38: Dn | L38: ： ブロック代表長さ (m) ( = ブロック体積Vの3乗根 )
K39: H | L39: ： 被覆材天端上堤体高
K40: d | L40: ： 被覆材天端上水深
K41: B | L41: ： 港内側マウンド天端幅
K42: L | L42: ： 打ち込み位置の堤体からの距離

Sheet 5.4 上部工に作用する波圧
B2: 直立消波ブロック式係船岸における上部工に作用する波圧の算定 (pp.110-112)
C3: [使用方法]
C4: ・ 黄色のセルに算定条件を入力すると、波圧および波圧合力等が算定されます。
C5: ・ 緑色のセルは係数です。必要に応じて変更してください。
C8: ①非越流時 (式 2-5-10 ～ 式 2-5-15)
D9: aI (m) | E9: hc (m) | F9: ℓ (m) | G9: B (m) | H9: ρ0 (t/m3)
D10: 1 | E10: 0.3 | F10: 0.2 | G10: 4.5 | H10: 1.03
D12: η* | E12: p1 | F12: p2 | G12: p3 | H12: pu | I12: 前面波圧合力 | J12: 揚圧力合力
I13: PI | J13: PU
D14: (m) | E14: (kN/m2) | F14: (kN/m2) | G14: (kN/m2) | H14: (kN/m2) | I14: (kN/m) | J14: (kN/m)
D15: =ROUND(3*D10,3) -> 3 | E15: =ROUND(2.2*H10*9.81*D10,3) -> 22.229 | F15: =ROUND((1-MIN(E10,D15)/D15)*E15,3) -> 20.006 | G15: =ROUND(E15+H10*9.81*F10,3) -> 24.25 | H15: =ROUND(G15,3) -> 24.25 | I15: =ROUND((E15+G15)*F10/2+(E15+F15)*MIN(D15,E10)/2,3) -> 10.983 | J15: =ROUND(H15*G10,3) -> 109.125
L19: aI | M19: ： 進行波としての津波高さ (m)
L20: hc | M20: ： 静水面上天端高 (m)
L21: ℓ | M21: ： 上部工の底面の水深 (m)
L22: B | M22: ： 上部工の幅 (m)
L23: ρ0 | M23: ： 海水の密度 (通常は1.03t/m3)
L24: η* | M24: ： 静水面上の波圧作用高さ (m)
L25: p1 | M25: ： 静水面における波圧強度 (kN/m2)
L26: p2 | M26: ： 上部工上端部における波圧強度 (kN/m2)
L27: p3 | M27: ： 上部工下端部における波圧強度 (kN/m2)
L28: pu | M28: ： 上部工下面に作用する揚圧力 (kN/m2)
C31: ②越流時
C32: 上部工の前面波圧分布（水工研式より算定）
D33: η (m) | E33: ℓ (m) | F33: hc (m) | G33: ρ0 (t/m3) | H33: a1
D34: 2 | E34: 0.5 | F34: 0.3 | G34: 1.03 | H34: 1.1
D36: p1 | E36: p2 | F36: 前面波圧合力
F37: PI
D38: (kN/m2) | E38: (kN/m2) | F38: (kN/m)
D39: =ROUND(G34*9.81*(D34+E34-F34)*H34,3) -> 24.452 | E39: =ROUND(G34*9.81*(D34-F34)*H34,3) -> 18.895 | F39: =ROUND(0.5*(D39+E39)*E34,3) -> 10.837
C43: 上部工下面に作用する揚圧力 (式 2-5-16、式2-5-17)
D44: U (m/s) | E44: B (m) | F44: ρ0 (t/m3) | G44: CL | L44: η | M44: ： 静水面上の前面の津波高さ (m)
D45: 3 | E45: 4.5 | F45: 1.03 | G45: 2.4 | L45: ℓ | M45: ：上部工の高さ (m)
L46: B | M46: ： 上部工の幅 (m)
F47: ※矩形上部工の場合 | L47: ρ0 | M47: ： 海水の密度 (t/m3)
D48: 浮力除く 揚圧力合力 | F48: 浮力 | G48: 浮力含む 揚圧力合力 | L48: p1 | M48: ： 堤体下端部における前面波圧強度 (kN/m2)
L49: p2 | M49: ： 堤体上端部における前面波圧強度 (kN/m2)
D50: PU | G50: PU | L50: pu | M50: ： 上部工下面に作用する揚力 (kN/m2)
D51: (kN/m) | F51: (kN/m) | G51: (kN/m) | L51: U | M51: ： 上部工上の流速 (m/s)
D52: =ROUND(E45*G45*0.5*F45*D45^2,3) -> 50.058 | F52: =ROUND(E45*F45*9.81*E34,3) -> 22.735 | G52: =ROUND(D52+F52,3) -> 72.793 | L52: a1 | M52: ： 前面の静水圧補正係数
L53: CL | M53: ： 揚力係数
